bitfinex/quotes_SOLUSD_20230120
["timestamp","ask_amount","ask_price","bid_price","bid_amount"]
[1674233562846,27.6,22.19,22.151,30.09]
[1674233563058,53.81,22.189,22.151,30.09]
[1674233563275,10.0,22.188,22.154,19.42906149]
[1674233563465,33.81,22.187,22.152,10.0]
[1674233563690,10.0,22.185,22.152,10.0]
[1674233563899,34.78,22.184,22.152,10.0]
[1674233564095,10.0,22.183,22.152,10.0]
[1674233564308,33.82,22.182,22.154,54.46639149]
[1674233564522,33.82,22.182,22.155,4.9571]
[1674233564741,10.0,22.181,22.155,4.9571]
[1674233564943,34.78,22.18,22.142,7.91377666]
[1674233565150,34.78,22.18,22.143,35.17979]
[1674233565151,20.0,22.179,22.143,35.17979]
[1674233565365,44.78,22.178,22.143,35.17979]
[1674233565575,79.2620426,22.178,22.13,27.41]
[1674233565794,79.2620426,22.178,22.132,6.54390705]
[1674233565795,54.4820426,22.177,22.132,6.54390705]
[1674233566011,51.79,22.176,22.134,6.71833275]
[1674233566323,10.0,22.174,22.136,7.83026882]
[1674233566514,33.83,22.173,22.14,27.54]
[1674233566721,33.83,22.173,22.141,35.18024]
[1674233566954,10.0,22.174,22.142,35.18001]
[1674233567144,10.0,22.178,22.152,10.0]
[1674233567145,34.4820426,22.172,22.152,10.0]
[1674233567357,33.82,22.182,22.18,63.10534665]
[1674233567566,43.82,22.181,22.155,36.25808356]
[1674233567796,43.82,22.181,22.155,30.16]
[1674233567797,10.0,22.181,22.155,30.16]
[1674233568007,33.82,22.18,22.144,30.18]
[1674233568228,10.0,22.179,22.145,4.95934]
[1674233568531,10.0,22.177,22.142,10.0]
[1674233568742,33.83,22.176,22.136,30.19]
[1674233568949,62.9996186,22.176,22.137,7.21448473]
[1674233569168,10.96,22.175,22.139,10.0]
[1674233569356,33.83,22.174,22.14,35.14046]
[1674233569569,10.96,22.173,22.141,10.0]
[1674233569775,33.83,22.172,22.142,30.18]
[1674233570004,0.96,22.171,22.142,30.18]
[1674233570197,33.84,22.17,22.141,40.18]
[1674233570403,33.84,22.17,22.137,10.0]
[1674233570404,10.0,22.168,22.137,10.0]
[1674233570614,53.84,22.167,22.138,30.37]
[1674233571056,10.96,22.166,22.137,10.0]
[1674233571268,33.84,22.165,22.138,30.37]
[1674233571580,10.0,22.164,22.138,30.37]
[1674233571770,33.85,22.163,22.137,40.37]
[1674233571973,33.85,22.163,22.137,45.33113]
[1674233572188,10.0,22.162,22.138,18.83260125]
[1674233572416,10.0,22.162,22.139,36.29069]
[1674233572624,10.0,22.164,22.139,35.33069]
[1674233572823,10.0,22.164,22.14,30.10619588]
[1674233573035,10.0,22.164,22.142,10.0]
[1674233573245,10.0,22.164,22.143,30.36]
[1674233573448,10.0,22.164,22.143,49.19260125]
[1674233573658,10.0,22.164,22.144,38.83260125]
[1674233573886,10.0,22.166,22.145,31.27]
[1674233574094,10.0,22.169,22.147,10.0]
[1674233574303,149.0581,22.174,22.15,27.6]
[1674233574627,115.2281,22.174,22.151,0.96]
[1674233574824,33.83,22.172,22.148,30.3]
[1674233575037,10.0,22.171,22.141,30.31]
[1674233575267,33.84,22.17,22.143,20.0]
[1674233575457,41.41446727,22.173,22.15,37.6]
[1674233575458,10.0,22.173,22.15,37.6]
[1674233575785,115.2281,22.174,22.152,7.1443307]
[1674233576092,115.2281,22.174,22.154,10.0]
[1674233576288,115.2281,22.174,22.155,50.29]
[1674233576506,10.0,22.179,22.156,11.22668157]
[1674233576822,43.81,22.186,22.156,11.22668157]
[1674233576823,10.0,22.186,22.159,10.0]
[1674233577153,10.0,22.186,22.161,10.0]
[1674233577339,10.0,22.186,22.161,14.95576]
[1674233577550,43.81,22.186,22.163,10.0]
[1674233577771,10.0,22.186,22.165,4.30465038]
[1674233577987,33.78,22.208,22.17,27.6]
[1674233578175,33.78,22.208,22.172,5.44600553]
[1674233578176,10.0,22.198,22.172,5.44600553]
[1674233578395,10.0,22.198,22.174,7.83566586]
[1674233578597,10.0,22.198,22.176,7.33182105]
[1674233578821,10.0,22.198,22.178,10.0]
[1674233579050,33.78,22.206,22.18,16.14157182]
[1674233579353,10.0,22.207,22.18,16.14157182]
[1674233579354,10.0,22.207,22.182,5.57754463]
[1674233579667,108.597,22.209,22.184,7.08957081]
[1674233579982,108.597,22.209,22.183,55.73085]
[1674233579983,10.0,22.219,22.191,10.0]
[1674233580299,10.0,22.219,22.193,6.54251204]
[1674233580508,43.76,22.219,22.194,53.8]
[1674233580710,10.0,22.217,22.193,4.94862]
[1674233581032,10.0,22.215,22.187,10.0]
[1674233581346,33.77,22.214,22.193,18.83260125]
[1674233581658,33.00046727,22.218,22.194,37.58839]
[1674233581874,153.434136,22.22,22.195,4.6348623]
[1674233582077,43.785336,22.22,22.2,27.6]
[1674233582288,43.785336,22.22,22.202,4.40066491]
[1674233582489,43.785336,22.22,22.203,38.73639]
[1674233582709,10.0,22.219,22.2,27.6]
[1674233583030,10.0,22.219,22.201,0.96]
[1674233583226,43.785336,22.22,22.201,18.83260125]
[1674233583443,43.785336,22.22,22.202,20.96]
[1674233583652,43.785336,22.22,22.203,33.79]
[1674233583866,43.785336,22.22,22.21,27.6]
[1674233584193,33.73,22.241,22.212,5.43967239]
[1674233584385,33.71,22.251,22.213,48.71416]
[1674233584586,33.71,22.251,22.214,11.82673683]
[1674233584805,33.71,22.251,22.216,6.17497361]
[1674233585020,10.0,22.25,22.218,14.66506534]
[1674233585345,10.0,22.25,22.221,7.09371605]
[1674233585553,117.4112,22.252,22.23,27.6]
[1674233585745,33.71,22.251,22.231,4.94016]
[1674233585950,10.0,22.25,22.232,10.96]
[1674233586166,0.0046301,22.237,22.233,31.49474558]
[1674233586392,0.34546936,22.236,22.234,20.00492645]
[1674233586582,0.34546936,22.236,22.235,5.89927]
[1674233586798,0.0046301,22.237,22.235,5.89927]
[1674233587422,0.0046301,22.237,22.235,4.93927]
[1674233587652,0.0046301,22.237,22.223,10.83]
[1674233587842,0.0046301,22.237,22.212,7.80432851]
[1674233588056,33.74,22.236,22.214,4.94394]
[1674233588486,33.74,22.236,22.203,5.36214398]
[1674233588701,37.89885194,22.235,22.204,4.94616]
[1674233588921,43.74,22.234,22.201,10.0]
[1674233589108,0.96,22.233,22.201,10.0]
[1674233589316,33.74,22.232,22.201,10.0]
[1674233589527,33.74,22.233,22.202,23.77921125]
[1674233589843,10.0,22.234,22.212,10.0]
[1674233590054,10.0,22.234,22.213,4.94416]
[1674233590808,10.0,22.232,22.206,10.0]
[1674233591001,33.74,22.231,22.206,10.0]
[1674233591214,33.74,22.231,22.206,14.94572]
[1674233591415,33.74,22.231,22.207,4.9455]
[1674233591954,10.0,22.23,22.198,16.64804507]
[1674233592277,53.75,22.229,22.199,4.94728]
[1674233592490,53.75,22.229,22.192,7.29505087]
[1674233592491,136.88300787,22.229,22.192,7.29505087]
[1674233592700,33.47218527,22.228,22.194,4.94839]
[1674233592886,33.47218527,22.228,22.21,27.57]
[1674233593100,33.74,22.234,22.211,14.90972982]
[1674233593316,33.74,22.236,22.212,4.94438]
[1674233593538,33.74,22.235,22.212,4.94438]
[1674233593850,33.74,22.236,22.212,4.94438]
[1674233594086,27.6,22.23,22.212,4.94438]
[1674233594275,33.75,22.229,22.212,4.94438]
[1674233594463,33.75,22.229,22.184,75.39808519]
[1674233594464,111.7252996,22.229,22.186,4.97280438]
[1674233594673,160.76884964,22.228,22.194,4.94839]
[1674233594899,27.38,22.22,22.194,4.94839]
[1674233595112,27.33,22.21,22.194,4.94839]
[1674233595310,33.78,22.209,22.194,4.94839]
[1674233595521,0.96,22.208,22.194,4.94839]
[1674233595724,0.96,22.208,22.167,15.057]
[1674233595725,33.78,22.207,22.167,15.057]
[1674233595935,129.8177,22.206,22.169,10.0]
[1674233596166,33.78,22.205,22.17,4.95375]
[1674233596562,0.96,22.204,22.17,4.95375]
[1674233596778,43.79,22.203,22.17,4.67757]
[1674233597421,27.52,22.2,22.17,4.67757]
[1674233597643,33.79,22.199,22.17,4.67757]
[1674233597852,30.96,22.198,22.17,4.67757]
[1674233598063,33.8,22.197,22.17,4.67757]
[1674233598384,20.96,22.196,22.17,4.67757]
[1674233598576,33.8,22.195,22.17,4.67757]
[1674233598781,10.0,22.193,22.17,4.67757]
[1674233599103,33.8,22.192,22.17,4.67757]
[1674233599638,0.96,22.191,22.152,10.0]
[1674233599847,43.81,22.19,22.153,4.95755]
[1674233600058,20.96,22.189,22.154,18.82641461]
[1674233600268,33.81,22.188,22.155,4.9571]
[1674233600482,144.9061,22.189,22.155,11.05588757]
[1674233600674,144.9061,22.189,22.156,10.0]
[1674233600675,10.0,22.188,22.156,10.0]
[1674233600890,10.0,22.188,22.156,17.9625305]
[1674233601102,33.81,22.187,22.158,16.91068896]
[1674233601314,33.81,22.187,22.159,22.999]
[1674233601547,33.81,22.187,22.16,4.95598]
[1674233601746,10.0,22.186,22.162,10.0]
[1674233602148,33.81,22.187,22.163,20.0]
[1674233602378,111.0961,22.189,22.164,5.51616364]
[1674233602589,111.0961,22.189,22.165,4.95487]
[1674233602805,33.8,22.196,22.171,4.59702511]
[1674233602997,112.3319,22.198,22.172,10.2313]
[1674233603206,112.3319,22.198,22.173,24.95308]
[1674233603421,112.3319,22.198,22.174,13.57286]
[1674233603633,112.3319,22.198,22.174,5.91286]
[1674233603849,43.8,22.197,22.175,30.0]
[1674233604061,10.0,22.197,22.176,0.96]
[1674233604251,112.3319,22.198,22.176,0.96]
[1674233604468,169.4683708,22.198,22.176,0.96]
[1674233604883,10.0,22.197,22.176,0.96]
[1674233605328,33.8,22.196,22.176,0.96]
[1674233605731,10.0,22.196,22.176,0.96]
[1674233605944,33.8,22.195,22.163,23.24550673]
[1674233606358,33.8,22.195,22.162,26.0]
[1674233606572,0.96,22.194,22.162,10.0]
[1674233606901,43.8,22.193,22.162,10.0]
[1674233607114,43.8,22.193,22.162,17.13608062]
[1674233607427,33.8,22.193,22.163,4.95531]
[1674233607619,33.8,22.197,22.172,10.0]
[1674233607830,112.3319,22.198,22.172,10.0]
[1674233607831,112.3319,22.198,22.173,4.95308]
[1674233608033,33.8,22.197,22.173,4.95308]
[1674233608263,33.8,22.197,22.174,0.96]
[1674233608577,33.8,22.197,22.175,4.95263]
[1674233608781,33.79,22.199,22.176,10.96]
[1674233608985,0.0046301,22.237,22.18,27.6]
[1674233608986,33.78,22.207,22.18,27.6]
[1674233609217,110.565,22.231,22.191,6.55545877]
[1674233609420,117.3487,22.23,22.193,6.53855409]
[1674233609630,10.0,22.229,22.195,17.91128439]
[1674233609847,33.75,22.228,22.197,6.15637998]
[1674233610069,33.75,22.228,22.198,5.9075]
[1674233610680,10.0,22.227,22.2,27.52]
[1674233610904,33.75,22.226,22.202,7.67151472]
[1674233611116,33.75,22.226,22.203,25.90639]
[1674233611309,33.75,22.226,22.204,4.94616]
[1674233611731,10.0,22.225,22.204,4.94616]
[1674233612079,33.75,22.224,22.189,10.0]
[1674233612262,20.0,22.223,22.189,10.0]
[1674233612477,10.0,22.221,22.189,10.0]
[1674233612691,53.76,22.22,22.189,10.0]
[1674233612896,33.76,22.22,22.189,10.0]
[1674233613226,33.76,22.22,22.19,4.94928]
[1674233613846,10.0,22.219,22.189,10.0]
[1674233614065,33.76,22.218,22.189,10.0]
[1674233614255,20.0,22.217,22.181,10.0]
[1674233614468,34.73,22.216,22.181,10.0]
[1674233614683,30.0,22.215,22.174,10.0]
[1674233614998,10.0,22.209,22.174,10.0]
[1674233615204,54.74,22.208,22.175,4.95263]
[1674233615617,10.0,22.207,22.175,4.95263]
[1674233615830,53.78,22.206,22.175,4.95263]
[1674233616064,0.96,22.205,22.175,4.95263]
[1674233616253,0.96,22.205,22.165,13.27]
[1674233616254,33.78,22.204,22.164,10.0]
[1674233616473,20.96,22.203,22.165,4.95487]
[1674233616675,27.51,22.2,22.165,4.95487]
[1674233616895,54.75,22.199,22.165,4.95487]
[1674233617417,115.4842,22.198,22.165,4.95487]
[1674233617632,10.0,22.196,22.162,10.0]
[1674233617823,34.76,22.195,22.162,10.0]
[1674233618041,10.0,22.194,22.163,4.95531]
[1674233618261,33.8,22.193,22.163,4.95531]
[1674233618474,0.96,22.192,22.163,4.95531]
[1674233618794,33.8,22.191,22.163,4.95531]
[1674233619199,33.8,22.193,22.171,7.83134545]
[1674233619432,33.8,22.197,22.172,4.9533]
[1674233619647,33.8,22.197,22.173,10.0]
[1674233619831,115.4842,22.198,22.18,27.52]
[1674233620041,33.79,22.201,22.18,27.52]
[1674233620042,33.79,22.201,22.181,12.61366722]
[1674233620263,115.2005,22.22,22.19,27.41]
[1674233620264,33.78,22.208,22.19,27.41]
[1674233620477,115.5685,22.214,22.191,23.69471775]
[1674233620478,43.77,22.213,22.191,23.69471775]
[1674233620700,43.77,22.213,22.192,24.94884]
[1674233620905,43.77,22.213,22.193,5.90862]
[1674233621093,33.77,22.213,22.193,5.90862]
[1674233621307,33.77,22.213,22.193,4.94862]
[1674233621536,33.77,22.213,22.18,27.52]
[1674233621537,10.0,22.212,22.175,10.0]
[1674233621726,27.52,22.21,22.175,10.0]
[1674233621943,53.78,22.209,22.175,10.0]
[1674233622356,33.78,22.209,22.175,10.0]
[1674233622566,10.0,22.208,22.175,10.0]
[1674233622787,33.78,22.207,22.175,10.0]
[1674233623214,33.78,22.207,22.176,20.0]
[1674233623636,10.96,22.206,22.176,20.0]
[1674233623831,10.96,22.206,22.175,10.0]
[1674233623832,10.0,22.204,22.175,10.0]
[1674233624174,33.79,22.203,22.176,20.0]
[1674233624564,10.96,22.202,22.176,20.0]
[1674233624892,33.79,22.201,22.176,20.0]
[1674233625214,10.0,22.2,22.177,10.0]
[1674233625430,10.0,22.198,22.177,10.0]
[1674233625631,10.0,22.198,22.176,19.5]
[1674233625632,33.8,22.197,22.176,19.5]
[1674233625956,10.0,22.196,22.176,19.5]
[1674233626159,33.8,22.195,22.176,19.5]
[1674233626565,10.0,22.194,22.176,19.5]
[1674233627106,33.8,22.193,22.176,19.5]
[1674233627303,33.8,22.195,22.177,0.96]
[1674233627517,33.79,22.198,22.177,15.91219]
[1674233627725,113.8066,22.199,22.177,15.91219]
[1674233628353,113.8066,22.199,22.177,14.95219]
[1674233628560,43.79,22.198,22.171,10.0]
[1674233628773,10.0,22.196,22.171,10.0]
[1674233628995,10.0,22.196,22.162,17.9227907]
[1674233628996,33.8,22.195,22.162,10.0]
[1674233629205,20.0,22.194,22.162,10.0]
[1674233629421,10.0,22.196,22.162,16.02574064]
[1674233629422,33.8,22.193,22.162,16.02574064]
[1674233629615,10.0,22.196,22.163,4.95531]
[1674233629828,34.76,22.195,22.163,4.95531]
[1674233630035,0.96,22.194,22.163,4.95531]
[1674233630357,43.8,22.193,22.162,10.0]
[1674233630561,0.96,22.192,22.162,10.0]
[1674233630767,43.8,22.191,22.162,9.0]
[1674233630981,0.96,22.19,22.162,9.0]
[1674233631302,33.81,22.189,22.162,9.0]
[1674233631635,10.0,22.188,22.162,9.0]
[1674233631846,33.81,22.189,22.162,9.0]
[1674233632158,33.81,22.19,22.163,31.17484364]
[1674233632360,33.81,22.19,22.165,10.0]
[1674233632686,33.81,22.19,22.166,20.96]
[1674233632890,33.81,22.19,22.166,39.2466387]
[1674233633116,33.8,22.196,22.17,27.6]
[1674233633314,114.9821,22.198,22.171,25.91353]
[1674233633514,33.79,22.198,22.172,21.9349131]
[1674233633838,10.0,22.197,22.173,25.91308]
[1674233634047,10.0,22.197,22.174,4.95286]
[1674233634238,33.79,22.201,22.175,0.96]
[1674233634450,33.79,22.203,22.175,57.5332774]
[1674233634655,113.6285,22.209,22.18,27.6]
[1674233634875,113.6285,22.209,22.181,5.34943582]
[1674233635076,113.6285,22.209,22.182,5.91107]
[1674233635304,33.78,22.208,22.182,4.95107]
[1674233635517,33.78,22.208,22.172,10.0]
[1674233635722,27.6,22.2,22.172,14.9533]
[1674233635925,53.79,22.199,22.172,14.9533]
[1674233636135,53.79,22.199,22.172,4.9533]
[1674233636475,10.0,22.197,22.151,10.0]
[1674233636784,27.32,22.19,22.161,4.95576]
[1674233636969,27.47,22.18,22.151,10.0]
[1674233637180,53.82,22.179,22.151,10.0]
[1674233637418,108.5937,22.178,22.151,4.958]
[1674233637601,63.83,22.177,22.142,10.0]
[1674233637936,63.83,22.177,22.143,4.95979]
[1674233638136,0.96,22.176,22.143,4.95979]
[1674233638345,10.0,22.174,22.143,4.95979]
[1674233638692,34.79,22.173,22.143,4.95979]
[1674233638865,33.83,22.173,22.143,4.95979]
[1674233639209,10.0,22.172,22.143,4.95979]
[1674233639387,33.84,22.171,22.143,4.95979]
[1674233639809,0.96,22.17,22.142,10.0]
[1674233640018,10.0,22.168,22.142,10.0]
[1674233640246,33.84,22.167,22.142,10.0]
[1674233640442,10.0,22.166,22.142,10.0]
[1674233640654,33.84,22.165,22.142,10.0]
[1674233640858,10.0,22.164,22.142,10.0]
[1674233641069,33.85,22.163,22.142,10.0]
[1674233641393,10.0,22.162,22.141,10.0]
[1674233641588,33.85,22.161,22.139,10.0]
[1674233641806,33.85,22.161,22.137,45.88]
[1674233642014,33.85,22.161,22.136,45.88]
[1674233642446,10.0,22.16,22.137,55.88]
[1674233642661,33.85,22.159,22.137,55.88]
[1674233642870,10.0,22.158,22.137,55.88]
[1674233643072,33.86,22.157,22.137,55.88]
[1674233643287,10.0,22.16,22.137,55.88]
[1674233643495,113.2064,22.163,22.137,60.84113]
[1674233643711,113.2064,22.163,22.138,4.96091]
[1674233643902,113.2064,22.163,22.137,55.88]
[1674233644238,10.0,22.162,22.138,0.96]
[1674233644565,10.0,22.162,22.137,55.88]
[1674233644772,33.85,22.161,22.138,20.0]
[1674233645270,10.0,22.16,22.139,10.0]
[1674233645477,33.85,22.161,22.14,20.0]
[1674233645692,10.0,22.162,22.14,20.0]
[1674233645693,113.2064,22.163,22.14,53.88067616]
[1674233645920,33.83,22.173,22.141,5.59664824]
[1674233646133,33.83,22.175,22.15,27.41]
[1674233646451,108.238,22.176,22.143,4.5807401]
[1674233646639,33.83,22.175,22.144,4.95957]
[1674233646848,83.46455154,22.175,22.144,4.95957]
[1674233647061,83.46455154,22.175,22.139,55.88]
[1674233647272,10.0,22.174,22.139,55.88]
[1674233647589,10.0,22.174,22.141,7.05086375]
[1674233647590,33.83,22.173,22.141,7.05086375]
[1674233647815,4.99896,22.172,22.141,7.05086375]
[1674233648051,43.84,22.171,22.142,10.0]
[1674233648344,10.0,22.169,22.142,10.0]
[1674233648541,110.741,22.17,22.144,5.35582717]
[1674233648757,110.741,22.17,22.145,20.0]
[1674233649073,33.83,22.173,22.145,20.0]
[1674233649074,33.83,22.173,22.15,27.57]
[1674233649273,10.0,22.182,22.152,15.05081204]
[1674233649471,10.0,22.182,22.153,4.95755]
[1674233649690,10.0,22.182,22.153,25.91755]
[1674233649904,10.0,22.182,22.153,33.81453294]
[1674233649905,33.82,22.181,22.153,33.81453294]
[1674233650118,33.82,22.181,22.153,33.29730588]
[1674233650359,10.0,22.18,22.154,10.0]
[1674233650537,33.82,22.179,22.155,20.96]
[1674233650743,10.0,22.18,22.156,10.0]
[1674233650950,10.0,22.18,22.157,0.96]
[1674233651586,33.82,22.179,22.157,0.96]
[1674233652023,10.0,22.18,22.157,0.96]
[1674233652549,33.82,22.179,22.157,0.96]
[1674233653473,33.82,22.181,22.157,0.96]
[1674233653685,10.0,22.18,22.157,0.96]
[1674233654340,33.82,22.181,22.157,0.96]
[1674233654549,33.82,22.182,22.16,27.6]
[1674233654754,110.741,22.183,22.161,25.64890141]
[1674233654988,110.741,22.183,22.162,8.96796799]
[1674233655201,10.0,22.195,22.163,30.0]
[1674233655389,33.8,22.194,22.17,27.6]
[1674233655599,33.8,22.194,22.171,0.96]
[1674233656020,10.0,22.193,22.171,10.96]
[1674233656254,33.8,22.192,22.164,4.95509]
[1674233656442,33.8,22.192,22.162,4.95]
[1674233656777,33.8,22.192,22.15,37.6]
[1674233656778,20.0,22.191,22.152,14.952]
[1674233657091,10.0,22.189,22.152,10.0]
[1674233657283,54.77,22.188,22.152,10.0]
[1674233657717,10.0,22.187,22.152,10.0]
[1674233658035,33.78,22.208,22.161,6.87121272]
[1674233658245,10.0,22.207,22.162,19.47654]
[1674233658459,10.0,22.207,22.163,151.47583293]
[1674233658460,33.78,22.206,22.163,151.47583293]
[1674233658657,33.78,22.206,22.164,18.40141573]
[1674233658854,10.0,22.205,22.167,10.0]
[1674233659064,33.78,22.204,22.169,7.15577819]
[1674233659294,33.78,22.204,22.17,12.06975]
[1674233659516,33.78,22.204,22.18,27.6]
[1674233659725,33.78,22.208,22.181,29.683]
[1674233659906,143.4427,22.219,22.19,27.52]
[1674233660117,143.4427,22.219,22.191,0.96]
[1674233660325,10.0,22.218,22.191,49.2466387]
[1674233660556,33.77,22.217,22.192,18.2866387]
[1674233660874,28.77,22.217,22.193,20.72555517]
[1674233661063,33.75,22.23,22.193,42.07358852]
[1674233661275,10.0,22.229,22.194,28.2866387]
[1674233661494,33.75,22.228,22.194,10.0]
[1674233661705,33.75,22.228,22.195,20.0]
[1674233661918,33.75,22.228,22.195,38.2866387]
[1674233662123,33.75,22.228,22.196,28.2866387]
[1674233662124,10.0,22.227,22.196,28.2866387]
[1674233662333,33.75,22.226,22.198,5.87017372]
[1674233662544,33.75,22.226,22.2,27.41]
[1674233662757,10.0,22.225,22.201,30.0]
[1674233662973,10.0,22.225,22.202,0.96]
[1674233663186,33.75,22.224,22.202,0.96]
[1674233663394,10.0,22.225,22.202,19.2466387]
[1674233663613,10.0,22.227,22.203,55.6030287]
[1674233663909,33.75,22.226,22.204,18.2866387]
[1674233664141,10.0,22.225,22.205,20.96]
[1674233664348,33.75,22.224,22.205,20.96]
[1674233664554,33.75,22.224,22.206,18.2866387]
[1674233664878,10.0,22.227,22.205,0.96]
[1674233665087,33.75,22.226,22.196,28.2866387]
[1674233665510,33.75,22.226,22.205,18.2866387]
[1674233665827,33.75,22.226,22.196,10.0]
[1674233666138,27.96,22.225,22.195,18.2866387]
[1674233666343,33.75,22.224,22.183,10.0]
[1674233666555,37.96,22.223,22.184,18.2866387]
[1674233666878,37.96,22.223,22.19,27.57]
[1674233666879,33.76,22.222,22.19,27.57]
[1674233667194,30.96,22.221,22.191,10.0]
[1674233667379,10.0,22.219,22.19,18.2866387]
[1674233667593,54.72,22.218,22.183,10.0]
[1674233667803,54.72,22.218,22.185,18.2866387]
[1674233668137,10.0,22.217,22.186,10.0]
[1674233668345,10.0,22.215,22.191,10.0]
[1674233668553,33.77,22.214,22.191,10.0]
[1674233668768,33.77,22.214,22.192,18.2866387]
[1674233668965,10.0,22.213,22.193,10.0]
[1674233669173,10.0,22.213,22.194,20.0]
[1674233669375,10.0,22.213,22.195,0.96]
[1674233669587,33.77,22.212,22.194,38.2866387]
[1674233669815,33.77,22.212,22.191,10.0]
[1674233670126,10.0,22.211,22.195,18.2866387]
[1674233670341,33.78,22.21,22.196,0.96]
[1674233670651,10.0,22.213,22.197,18.2866387]
[1674233670864,10.0,22.213,22.198,0.96]
[1674233671390,10.0,22.213,22.199,18.2866387]
[1674233671588,10.0,22.213,22.191,10.0]
[1674233671812,10.0,22.213,22.199,18.2866387]
[1674233672210,10.0,22.213,22.193,10.0]
[1674233672427,10.0,22.213,22.194,38.2866387]
[1674233672642,33.77,22.212,22.192,20.0]
[1674233672875,33.77,22.212,22.193,18.2866387]
[1674233673064,10.96,22.211,22.184,5.867]
[1674233673275,33.78,22.21,22.183,18.2866387]
[1674233673804,20.96,22.209,22.171,23.8286387]
[1674233674008,60.78,22.208,22.172,28.2866387]
[1674233674209,20.96,22.207,22.172,28.2866387]
[1674233674420,33.78,22.206,22.173,18.2866387]
[1674233674730,10.96,22.205,22.174,10.0]
[1674233674949,10.0,22.203,22.174,10.0]
[1674233675171,34.75,22.202,22.175,18.2866387]
[1674233675577,116.7512,22.201,22.175,18.2866387]
[1674233675794,116.7512,22.201,22.175,29.51934985]
[1674233675996,116.7512,22.201,22.176,10.0]
[1674233676199,116.7512,22.201,22.177,20.0]
[1674233676409,33.79,22.2,22.176,28.2866387]
[1674233676627,33.79,22.2,22.177,36.5732774]
[1674233676848,33.79,22.2,22.172,10.0]
[1674233677049,27.96,22.199,22.162,5.151]
[1674233677249,33.79,22.198,22.155,4.596]
[1674233677464,37.96,22.197,22.162,18.2866387]
[1674233677688,33.8,22.196,22.154,10.0]
[1674233677898,33.8,22.196,22.151,5.535]
[1674233677899,27.33,22.19,22.151,5.535]
[1674233678100,44.77,22.189,22.152,10.0]
[1674233678302,44.77,22.189,22.148,5.218]
[1674233678303,20.0,22.188,22.148,5.218]
[1674233678512,56.76896,22.187,22.143,6.328]
[1674233678725,27.47,22.18,22.142,18.2866387]
[1674233678950,10.0,22.178,22.144,18.2866387]
[1674233679181,53.83,22.177,22.144,18.2866387]